[Event "Titled Tuesday Blitz November 14 Early 2023"]
[White "Preobrazhenska_D2011"]
[Black "Brunner, Nicolas"]
[BlackFideId "620246"]
[WhiteElo "2455"]
[BlackElo "2587"]
[Result "1-0"]
[Round "8"]
[TimeControl "180+1"]
[Date "2023.11.14"]
[WhiteClock "0:00:08"]
[BlackClock "0:00:01"]
[Board "81"]

1. e4 {[%clk 0:02:58]}  e5 {[%clk 0:03:00]} 2. Nf3 {[%clk 0:02:59]}  Nf6 {[%clk 0:03:01]} 3. Nxe5 {[%clk 0:02:58]}  d6 {[%clk 0:03:01]} 4. Nf3 {[%clk 0:02:59]}  Nxe4 {[%clk 0:03:02]} 5. d4 {[%clk 0:02:59]}  d5 {[%clk 0:03:02]} 6. Bd3 {[%clk 0:03:00]}  Bd6 {[%clk 0:03:02]} 7. O-O {[%clk 0:02:59]}  O-O {[%clk 0:03:03]} 8. c4 {[%clk 0:02:59]}  c6 {[%clk 0:03:03]} 9. Qc2 {[%clk 0:02:44]}  Na6 {[%clk 0:02:58]} 10. a3 {[%clk 0:01:56]}  f5 {[%clk 0:02:57]} 11. b4 {[%clk 0:01:53]}  Be6 {[%clk 0:02:44]} 12. c5 {[%clk 0:01:43]}  Bb8 {[%clk 0:02:42]} 13. Nc3 {[%clk 0:01:28]}  Nc7 {[%clk 0:02:40]} 14. Ne5 {[%clk 0:01:24]}  Ne8 {[%clk 0:02:38]} 15. Bf4 {[%clk 0:01:16]}  N8f6 {[%clk 0:02:33]} 16. f3 {[%clk 0:01:09]}  Nxc3 {[%clk 0:02:33]} 17. Qxc3 {[%clk 0:01:10]}  Nh5 {[%clk 0:02:33]} 18. Bd2 {[%clk 0:01:06]}  Qh4 {[%clk 0:02:30]} 19. Be1 {[%clk 0:00:53]}  Qg5 {[%clk 0:02:27]} 20. Bd2 {[%clk 0:00:47]}  Qh4 {[%clk 0:02:27]} 21. Rae1 {[%clk 0:00:38]}  Re8 {[%clk 0:02:16]} 22. f4 {[%clk 0:00:37]}  Bc7 {[%clk 0:02:13]} 23. Be3 {[%clk 0:00:34]}  Nf6 {[%clk 0:02:12]} 24. g3 {[%clk 0:00:33]}  Qh3 {[%clk 0:02:11]} 25. Qd2 {[%clk 0:00:31]}  Ne4 {[%clk 0:02:08]} 26. Qg2 {[%clk 0:00:22]}  Qh5 {[%clk 0:01:30]} 27. a4 {[%clk 0:00:17]}  a6 {[%clk 0:01:30]} 28. Be2 {[%clk 0:00:14]}  Qh6 {[%clk 0:01:29]} 29. Bf3 {[%clk 0:00:12]}  Nc3 {[%clk 0:01:29]} 30. Ra1 {[%clk 0:00:08]}  Ne4 {[%clk 0:01:26]} 31. Ra3 {[%clk 0:00:07]}  Kh8 {[%clk 0:01:21]} 32. Be2 {[%clk 0:00:07]}  Re7 {[%clk 0:01:05]} 33. g4 {[%clk 0:00:07]}  fxg4 {[%clk 0:01:04]} 34. f5 {[%clk 0:00:07]}  Qh4 {[%clk 0:00:41]} 35. fxe6 {[%clk 0:00:07]}  Rxe6 {[%clk 0:00:42]} 36. Bf4 {[%clk 0:00:06]}  Kg8 {[%clk 0:00:40]} 37. Bxg4 {[%clk 0:00:06]}  Rf6 {[%clk 0:00:38]} 38. Rh3 {[%clk 0:00:06]}  Rxf4 {[%clk 0:00:34]} 39. Rxh4 {[%clk 0:00:06]}  Rxf1+ {[%clk 0:00:34]} 40. Qxf1 {[%clk 0:00:07]}  Rf8 {[%clk 0:00:33]} 41. Qg2 {[%clk 0:00:07]}  g6 {[%clk 0:00:29]} 42. Bf3 {[%clk 0:00:07]}  Nf6 {[%clk 0:00:29]} 43. Qh3 {[%clk 0:00:06]}  Kg7 {[%clk 0:00:26]} 44. Qe6 {[%clk 0:00:06]}  Bd8 {[%clk 0:00:16]} 45. Nd7 {[%clk 0:00:07]}  Re8 {[%clk 0:00:13]} 46. Qh3 {[%clk 0:00:06]}  Re1+ {[%clk 0:00:07]} 47. Kf2 {[%clk 0:00:06]}  Ra1 {[%clk 0:00:05]} 48. Nxf6 {[%clk 0:00:06]}  Kxf6 {[%clk 0:00:05]} 49. Rxh7 {[%clk 0:00:07]}  Ra2+ {[%clk 0:00:05]} 50. Ke3 {[%clk 0:00:07]}  Ra3+ {[%clk 0:00:05]} 51. Kd2 {[%clk 0:00:08]}  Ra2+ {[%clk 0:00:05]} 52. Kc3 {[%clk 0:00:08]}  Ra3+ {[%clk 0:00:05]} 53. Kb2 {[%clk 0:00:09]}  Rd3 {[%clk 0:00:04]} 54. Qh4+ {[%clk 0:00:09]}  Kf5 {[%clk 0:00:05]} 55. Bg4+ {[%clk 0:00:07]}  Ke4 {[%clk 0:00:04]} 56. Qxd8 {[%clk 0:00:08]}  Kxd4 {[%clk 0:00:04]} 57. Qf6+ {[%clk 0:00:08]}  Kc4 {[%clk 0:00:01]} 58. Be2 {[%clk 0:00:08]} 1-0


[Site "https://www.chess.com"]

[Event "Titled Tuesday Blitz November 14 Early 2023"]
[White "Lacasa Diaz, Jose Antonio"]
[Black "Derjabin, Ilja"]
[WhiteFideId "2203375"]
[BlackFideId "14104768"]
[WhiteElo "2367"]
[BlackElo "2577"]
[Result "1/2-1/2"]
[Round "8"]
[TimeControl "180+1"]
[Date "2023.11.14"]
[WhiteClock "0:00:37"]
[BlackClock "0:00:04"]
[Board "83"]

1. e4 {[%clk 0:03:00]}  c5 {[%clk 0:02:59]} 2. Nf3 {[%clk 0:03:00]}  d6 {[%clk 0:02:50]} 3. d4 {[%clk 0:02:59]}  cxd4 {[%clk 0:02:50]} 4. Nxd4 {[%clk 0:02:59]}  Nf6 {[%clk 0:02:51]} 5. Nc3 {[%clk 0:03:00]}  a6 {[%clk 0:02:51]} 6. Be3 {[%clk 0:02:59]}  e5 {[%clk 0:02:51]} 7. Nb3 {[%clk 0:02:58]}  Be7 {[%clk 0:02:51]} 8. Qd2 {[%clk 0:02:59]}  O-O {[%clk 0:02:50]} 9. O-O-O {[%clk 0:02:59]}  Ng4 {[%clk 0:02:42]} 10. g3 {[%clk 0:02:59]}  Be6 {[%clk 0:02:36]} 11. f4 {[%clk 0:02:58]}  Nxe3 {[%clk 0:02:36]} 12. Qxe3 {[%clk 0:02:59]}  Nc6 {[%clk 0:02:15]} 13. Kb1 {[%clk 0:02:59]}  Rc8 {[%clk 0:01:52]} 14. f5 {[%clk 0:02:58]}  Bxb3 {[%clk 0:01:52]} 15. axb3 {[%clk 0:02:59]}  Nd4 {[%clk 0:01:52]} 16. h4 {[%clk 0:02:52]}  Qa5 {[%clk 0:01:47]} 17. g4 {[%clk 0:02:34]}  b5 {[%clk 0:01:42]} 18. Bd3 {[%clk 0:02:22]}  Rxc3 {[%clk 0:01:37]} 19. bxc3 {[%clk 0:02:23]}  Qxc3 {[%clk 0:01:37]} 20. Qd2 {[%clk 0:02:10]}  Qc5 {[%clk 0:01:37]} 21. g5 {[%clk 0:02:09]}  Rc8 {[%clk 0:01:31]} 22. f6 {[%clk 0:02:10]}  Bd8 {[%clk 0:01:30]} 23. h5 {[%clk 0:02:02]}  Qa3 {[%clk 0:01:19]} 24. g6 {[%clk 0:01:55]}  Bxf6 {[%clk 0:01:01]} 25. Rdf1 {[%clk 0:01:47]}  Nxb3 {[%clk 0:00:23]} 26. cxb3 {[%clk 0:01:47]}  Qxb3+ {[%clk 0:00:23]} 27. Ka1 {[%clk 0:01:47]}  Qa3+ {[%clk 0:00:23]} 28. Kb1 {[%clk 0:01:46]}  Qb3+ {[%clk 0:00:23]} 29. Ka1 {[%clk 0:01:45]}  Qa3+ {[%clk 0:00:24]} 30. Kb1 {[%clk 0:01:45]}  Rc3 {[%clk 0:00:12]} 31. Bc2 {[%clk 0:01:41]}  Qb4+ {[%clk 0:00:11]} 32. Kc1 {[%clk 0:01:40]}  Rxc2+ {[%clk 0:00:08]} 33. Kxc2 {[%clk 0:01:32]}  Qa4+ {[%clk 0:00:07]} 34. Kb1 {[%clk 0:01:24]}  Qxe4+ {[%clk 0:00:07]} 35. Qc2 {[%clk 0:01:22]}  Qb4+ {[%clk 0:00:05]} 36. Ka2 {[%clk 0:01:20]}  Qa5+ {[%clk 0:00:05]} 37. Kb1 {[%clk 0:01:16]}  Qb4+ {[%clk 0:00:05]} 38. Qb2 {[%clk 0:01:01]}  Qe4+ {[%clk 0:00:05]} 39. Ka2 {[%clk 0:00:56]}  hxg6 {[%clk 0:00:05]} 40. hxg6 {[%clk 0:00:51]}  Qc4+ {[%clk 0:00:04]} 41. Ka1 {[%clk 0:00:46]}  Qa4+ {[%clk 0:00:03]} 42. Kb1 {[%clk 0:00:46]}  Qe4+ {[%clk 0:00:03]} 43. Qc2 {[%clk 0:00:42]}  Qb4+ {[%clk 0:00:03]} 44. Ka2 {[%clk 0:00:38]}  Qa5+ {[%clk 0:00:03]} 45. Kb1 {[%clk 0:00:39]}  Qb4+ {[%clk 0:00:03]} 46. Ka2 {[%clk 0:00:39]}  Qa5+ {[%clk 0:00:03]} 47. Kb1 {[%clk 0:00:37]}  Qb4+ {[%clk 0:00:04]} 1/2-1/2


[Site "https://www.chess.com"]

[Event "Titled Tuesday Blitz November 14 Early 2023"]
[White "Yaniuk, Volodymyr"]
[Black "Hambleton, Aman"]
[WhiteFideId "14133083"]
[BlackFideId "2606577"]
[WhiteElo "2510"]
[BlackElo "2725"]
[Result "0-1"]
[Round "8"]
[TimeControl "180+1"]
[Date "2023.11.14"]
[WhiteClock "0:00:05"]
[BlackClock "0:00:03"]
[Board "85"]

1. d4 {[%clk 0:02:55]}  e5 {[%clk 0:02:56]} 2. dxe5 {[%clk 0:02:55]}  Nc6 {[%clk 0:02:57]} 3. Nf3 {[%clk 0:02:55]}  Qe7 {[%clk 0:02:56]} 4. Bf4 {[%clk 0:02:55]}  Qb4+ {[%clk 0:02:57]} 5. Bd2 {[%clk 0:02:55]}  Qxb2 {[%clk 0:02:57]} 6. Nc3 {[%clk 0:02:55]}  Bb4 {[%clk 0:02:57]} 7. Rb1 {[%clk 0:02:55]}  Qxc3 {[%clk 0:02:58]} 8. Bxc3 {[%clk 0:02:55]}  Bxc3+ {[%clk 0:02:59]} 9. Nd2 {[%clk 0:02:55]}  Nxe5 {[%clk 0:02:59]} 10. e3 {[%clk 0:02:55]}  Nf6 {[%clk 0:03:00]} 11. Bd3 {[%clk 0:02:52]}  O-O {[%clk 0:03:00]} 12. O-O {[%clk 0:02:52]}  d5 {[%clk 0:03:01]} 13. Be2 {[%clk 0:02:47]}  b6 {[%clk 0:02:59]} 14. Nf3 {[%clk 0:02:47]}  Nxf3+ {[%clk 0:02:58]} 15. Bxf3 {[%clk 0:02:47]}  Be6 {[%clk 0:02:59]} 16. a3 {[%clk 0:02:40]}  Rad8 {[%clk 0:02:57]} 17. Qd3 {[%clk 0:02:39]}  Be5 {[%clk 0:02:57]} 18. Qa6 {[%clk 0:02:38]}  Nd7 {[%clk 0:02:38]} 19. Rfd1 {[%clk 0:02:30]}  Nc5 {[%clk 0:02:34]} 20. Qe2 {[%clk 0:02:29]}  Na4 {[%clk 0:02:32]} 21. Rb3 {[%clk 0:02:27]}  Nc3 {[%clk 0:02:32]} 22. Rxc3 {[%clk 0:02:26]}  Bxc3 {[%clk 0:02:32]} 23. Qb5 {[%clk 0:02:25]}  Rd6 {[%clk 0:02:18]} 24. g3 {[%clk 0:02:22]}  c6 {[%clk 0:01:25]} 25. Qa6 {[%clk 0:02:18]}  Rd7 {[%clk 0:01:26]} 26. Qa4 {[%clk 0:02:14]}  Rc8 {[%clk 0:00:58]} 27. Kg2 {[%clk 0:02:12]}  g6 {[%clk 0:00:49]} 28. h3 {[%clk 0:02:11]}  Kg7 {[%clk 0:00:25]} 29. Bg4 {[%clk 0:02:10]}  f5 {[%clk 0:00:25]} 30. Bf3 {[%clk 0:02:10]}  Be5 {[%clk 0:00:13]} 31. h4 {[%clk 0:01:58]}  b5 {[%clk 0:00:11]} 32. Qb4 {[%clk 0:01:53]}  Rcc7 {[%clk 0:00:05]} 33. c3 {[%clk 0:01:52]}  h5 {[%clk 0:00:04]} 34. a4 {[%clk 0:01:40]}  a6 {[%clk 0:00:04]} 35. axb5 {[%clk 0:01:40]}  cxb5 {[%clk 0:00:02]} 36. Qa5 {[%clk 0:01:30]}  Rc6 {[%clk 0:00:02]} 37. Rd3 {[%clk 0:01:29]}  Bf7 {[%clk 0:00:01]} 38. Qa2 {[%clk 0:01:22]}  Rcd6 {[%clk 0:00:01]} 39. Qa3 {[%clk 0:01:16]}  Bf6 {[%clk 0:00:01]} 40. Rd2 {[%clk 0:01:15]}  Kh7 {[%clk 0:00:02]} 41. Qc5 {[%clk 0:01:11]}  Be7 {[%clk 0:00:02]} 42. Qd4 {[%clk 0:01:04]}  Bf6 {[%clk 0:00:02]} 43. Qb4 {[%clk 0:01:04]}  Be7 {[%clk 0:00:02]} 44. Qd4 {[%clk 0:01:01]}  Kg8 {[%clk 0:00:03]} 45. Ra2 {[%clk 0:00:58]}  Bf6 {[%clk 0:00:04]} 46. Qd2 {[%clk 0:00:55]}  Rc6 {[%clk 0:00:04]} 47. Ra3 {[%clk 0:00:54]}  Kg7 {[%clk 0:00:04]} 48. Kh2 {[%clk 0:00:50]}  Rdd6 {[%clk 0:00:04]} 49. Qb2 {[%clk 0:00:49]}  Rb6 {[%clk 0:00:03]} 50. Qd2 {[%clk 0:00:48]}  Rbc6 {[%clk 0:00:03]} 51. Qb2 {[%clk 0:00:45]}  Be5 {[%clk 0:00:03]} 52. Qb4 {[%clk 0:00:39]}  Rc4 {[%clk 0:00:02]} 53. Qa5 {[%clk 0:00:36]}  Rc5 {[%clk 0:00:03]} 54. Qb4 {[%clk 0:00:32]}  Rdc6 {[%clk 0:00:03]} 55. Qb1 {[%clk 0:00:26]}  Bxc3 {[%clk 0:00:03]} 56. Rxc3 {[%clk 0:00:23]}  Rxc3 {[%clk 0:00:03]} 57. Qd1 {[%clk 0:00:24]}  R3c4 {[%clk 0:00:03]} 58. Bxd5 {[%clk 0:00:23]}  Bxd5 {[%clk 0:00:03]} 59. Qxd5 {[%clk 0:00:24]}  Rc7 {[%clk 0:00:03]} 60. Qe5+ {[%clk 0:00:22]}  Kh7 {[%clk 0:00:03]} 61. f3 {[%clk 0:00:19]}  Rc2+ {[%clk 0:00:02]} 62. Kh3 {[%clk 0:00:19]}  R2c5 {[%clk 0:00:03]} 63. Qb2 {[%clk 0:00:18]}  Rb7 {[%clk 0:00:02]} 64. g4 {[%clk 0:00:14]}  fxg4+ {[%clk 0:00:02]} 65. fxg4 {[%clk 0:00:15]}  hxg4+ {[%clk 0:00:03]} 66. Kg3 {[%clk 0:00:15]}  b4 {[%clk 0:00:03]} 67. Qd4 {[%clk 0:00:15]}  Rcb5 {[%clk 0:00:02]} 68. Qe4 {[%clk 0:00:14]}  Rg7 {[%clk 0:00:01]} 69. Qe6 {[%clk 0:00:11]}  b3 {[%clk 0:00:02]} 70. Qxa6 {[%clk 0:00:11]}  Rgb7 {[%clk 0:00:02]} 71. Qa1 {[%clk 0:00:09]}  b2 {[%clk 0:00:02]} 72. Qb1 {[%clk 0:00:10]}  Kg7 {[%clk 0:00:03]} 73. h5 {[%clk 0:00:10]}  Rxh5 {[%clk 0:00:02]} 74. Kxg4 {[%clk 0:00:11]}  Rc5 {[%clk 0:00:03]} 75. e4 {[%clk 0:00:06]}  Rc1 {[%clk 0:00:03]} 76. Qxb2+ {[%clk 0:00:06]}  Rxb2 {[%clk 0:00:03]} 77. e5 {[%clk 0:00:05]}  Rb5 {[%clk 0:00:03]} 0-1


[Site "https://www.chess.com"]

[Event "Titled Tuesday Blitz November 14 Early 2023"]
[White "Cristi_Coca"]
[Black "Arhan_Anand"]
[WhiteElo "2510"]
[BlackElo "2639"]
[Result "1/2-1/2"]
[Round "8"]
[TimeControl "180+1"]
[Date "2023.11.14"]
[WhiteClock "0:00:11"]
[BlackClock "0:00:15"]
[Board "86"]

1. e4 {[%clk 0:03:00]}  c5 {[%clk 0:03:00]} 2. c3 {[%clk 0:03:00]}  Nf6 {[%clk 0:02:59]} 3. e5 {[%clk 0:03:00]}  Nd5 {[%clk 0:02:59]} 4. Nf3 {[%clk 0:03:01]}  Nc6 {[%clk 0:02:58]} 5. Bc4 {[%clk 0:03:01]}  Nb6 {[%clk 0:02:59]} 6. Bb3 {[%clk 0:03:01]}  d5 {[%clk 0:02:59]} 7. exd6 {[%clk 0:03:01]}  Qxd6 {[%clk 0:02:59]} 8. O-O {[%clk 0:03:01]}  Bf5 {[%clk 0:02:59]} 9. d4 {[%clk 0:03:00]}  cxd4 {[%clk 0:02:59]} 10. Nxd4 {[%clk 0:02:55]}  Nxd4 {[%clk 0:02:57]} 11. cxd4 {[%clk 0:02:56]}  e6 {[%clk 0:02:46]} 12. Nc3 {[%clk 0:02:50]}  Be7 {[%clk 0:02:41]} 13. Qf3 {[%clk 0:02:50]}  O-O {[%clk 0:02:38]} 14. Qxb7 {[%clk 0:02:48]}  Rfb8 {[%clk 0:02:28]} 15. Qf3 {[%clk 0:02:46]}  Qxd4 {[%clk 0:02:27]} 16. Bf4 {[%clk 0:02:33]}  Bd6 {[%clk 0:02:05]} 17. Ne2 {[%clk 0:02:10]}  Qb4 {[%clk 0:01:48]} 18. a3 {[%clk 0:02:05]}  Be4 {[%clk 0:01:19]} 19. axb4 {[%clk 0:01:50]}  Bxf3 {[%clk 0:01:19]} 20. gxf3 {[%clk 0:01:51]}  Bxf4 {[%clk 0:01:16]} 21. Nxf4 {[%clk 0:01:52]}  Nd7 {[%clk 0:01:17]} 22. Rfd1 {[%clk 0:01:33]}  Ne5 {[%clk 0:01:15]} 23. Nxe6 {[%clk 0:01:21]}  Rxb4 {[%clk 0:01:08]} 24. Rxa7 {[%clk 0:01:10]}  Nxf3+ {[%clk 0:01:01]} 25. Kg2 {[%clk 0:01:08]}  Nh4+ {[%clk 0:01:00]} 26. Kf1 {[%clk 0:01:08]}  Rc8 {[%clk 0:00:52]} 27. Nc5 {[%clk 0:00:56]}  h6 {[%clk 0:00:35]} 28. Rxf7 {[%clk 0:00:55]}  Kh8 {[%clk 0:00:33]} 29. Rb7 {[%clk 0:00:33]}  Rf4 {[%clk 0:00:23]} 30. Ne6 {[%clk 0:00:31]}  Rg4 {[%clk 0:00:20]} 31. Rd8+ {[%clk 0:00:28]}  Rxd8 {[%clk 0:00:20]} 32. Nxd8 {[%clk 0:00:29]}  Nf3 {[%clk 0:00:20]} 33. Nf7+ {[%clk 0:00:24]}  Kh7 {[%clk 0:00:20]} 34. h3 {[%clk 0:00:21]}  Rg1+ {[%clk 0:00:19]} 35. Ke2 {[%clk 0:00:21]}  Nd4+ {[%clk 0:00:20]} 36. Kd3 {[%clk 0:00:21]}  Nf3 {[%clk 0:00:18]} 37. Ke3 {[%clk 0:00:20]}  Nh4 {[%clk 0:00:16]} 38. Bc2+ {[%clk 0:00:19]}  Kg8 {[%clk 0:00:16]} 39. Ne5 {[%clk 0:00:19]}  g5 {[%clk 0:00:15]} 40. Bb3+ {[%clk 0:00:16]}  Kf8 {[%clk 0:00:16]} 41. Ng4 {[%clk 0:00:16]}  Nf5+ {[%clk 0:00:15]} 42. Ke4 {[%clk 0:00:15]}  Nd6+ {[%clk 0:00:16]} 43. Ke5 {[%clk 0:00:15]}  Nxb7 {[%clk 0:00:16]} 44. Nxh6 {[%clk 0:00:14]}  Nc5 {[%clk 0:00:16]} 45. Bd5 {[%clk 0:00:13]}  Re1+ {[%clk 0:00:14]} 46. Kf5 {[%clk 0:00:12]}  Nd3 {[%clk 0:00:14]} 47. Ng4 {[%clk 0:00:12]}  Nxb2 {[%clk 0:00:14]} 48. Kxg5 {[%clk 0:00:12]}  Nd3 {[%clk 0:00:14]} 49. Bf3 {[%clk 0:00:10]}  Ne5 {[%clk 0:00:14]} 50. Nxe5 {[%clk 0:00:09]}  Rxe5+ {[%clk 0:00:15]} 51. Kf4 {[%clk 0:00:10]}  Rc5 {[%clk 0:00:15]} 52. Kg3 {[%clk 0:00:10]}  Kg7 {[%clk 0:00:15]} 53. h4 {[%clk 0:00:11]}  Kh6 {[%clk 0:00:15]} 54. Bg4 {[%clk 0:00:10]}  Rc3+ {[%clk 0:00:16]} 55. f3 {[%clk 0:00:11]}  Rd3 {[%clk 0:00:16]} 56. Kf4 {[%clk 0:00:11]}  Kg6 {[%clk 0:00:16]} 57. Kg3 {[%clk 0:00:12]}  Kf6 {[%clk 0:00:16]} 58. Kf4 {[%clk 0:00:12]}  Rd4+ {[%clk 0:00:15]} 59. Kg3 {[%clk 0:00:13]}  Rc4 {[%clk 0:00:15]} 60. Kg2 {[%clk 0:00:09]}  Rd4 {[%clk 0:00:15]} 61. Kg3 {[%clk 0:00:10]}  Rd3 {[%clk 0:00:15]} 62. Kf4 {[%clk 0:00:10]}  Rd4+ {[%clk 0:00:15]} 63. Kg3 {[%clk 0:00:11]} 1/2-1/2


[Site "https://www.chess.com"]

[Event "Titled Tuesday Blitz November 14 Early 2023"]
[White "Shohat, Yotam"]
[Black "Adla, Diego"]
[WhiteFideId "2813955"]
[BlackFideId "100072"]
[WhiteElo "2509"]
[BlackElo "2630"]
[Result "0-1"]
[Round "8"]
[TimeControl "180+1"]
[Date "2023.11.14"]
[WhiteClock "0:00:00"]
[BlackClock "0:00:46"]
[Board "87"]

1. e4 {[%clk 0:02:49]}  e5 {[%clk 0:02:59]} 2. Nf3 {[%clk 0:02:48]}  Nc6 {[%clk 0:02:59]} 3. Bb5 {[%clk 0:02:46]}  a6 {[%clk 0:02:58]} 4. Ba4 {[%clk 0:02:25]}  Nf6 {[%clk 0:02:57]} 5. d3 {[%clk 0:02:19]}  Bc5 {[%clk 0:02:56]} 6. Bxc6 {[%clk 0:02:15]}  dxc6 {[%clk 0:02:50]} 7. Nbd2 {[%clk 0:02:15]}  Be6 {[%clk 0:02:45]} 8. O-O {[%clk 0:02:13]}  Nd7 {[%clk 0:02:42]} 9. b3 {[%clk 0:02:05]}  f6 {[%clk 0:02:33]} 10. Nc4 {[%clk 0:01:43]}  Qe7 {[%clk 0:02:30]} 11. Nh4 {[%clk 0:01:26]}  g5 {[%clk 0:02:14]} 12. Nf5 {[%clk 0:01:24]}  Bxf5 {[%clk 0:02:14]} 13. exf5 {[%clk 0:01:25]}  O-O-O {[%clk 0:02:14]} 14. Nd2 {[%clk 0:01:16]}  Nb6 {[%clk 0:02:09]} 15. Ne4 {[%clk 0:01:14]}  Nd5 {[%clk 0:02:09]} 16. c3 {[%clk 0:01:06]}  h5 {[%clk 0:02:05]} 17. Qc2 {[%clk 0:01:05]}  Ba7 {[%clk 0:02:00]} 18. a3 {[%clk 0:00:55]}  Qd7 {[%clk 0:01:58]} 19. c4 {[%clk 0:00:47]}  Ne7 {[%clk 0:01:47]} 20. Nxf6 {[%clk 0:00:45]}  Qxd3 {[%clk 0:01:35]} 21. Qxd3 {[%clk 0:00:45]}  Rxd3 {[%clk 0:01:35]} 22. Bb2 {[%clk 0:00:45]}  Bd4 {[%clk 0:01:24]} 23. Bxd4 {[%clk 0:00:42]}  exd4 {[%clk 0:01:24]} 24. b4 {[%clk 0:00:40]}  Nxf5 {[%clk 0:01:19]} 25. Rfe1 {[%clk 0:00:40]}  g4 {[%clk 0:01:09]} 26. Re5 {[%clk 0:00:39]}  Nd6 {[%clk 0:01:09]} 27. c5 {[%clk 0:00:35]}  Nc4 {[%clk 0:01:08]} 28. Re7 {[%clk 0:00:26]}  Kb8 {[%clk 0:01:00]} 29. Rae1 {[%clk 0:00:23]}  Rxa3 {[%clk 0:00:51]} 30. g3 {[%clk 0:00:19]}  d3 {[%clk 0:00:50]} 31. Rd7 {[%clk 0:00:09]}  Nd2 {[%clk 0:00:46]} 32. Ree7 {[%clk 0:00:02]}  Nf3+ {[%clk 0:00:45]} 33. Kg2 {[%clk 0:00:00]}  Ra1 {[%clk 0:00:46]} 0-1


[Site "https://www.chess.com"]

[Event "Titled Tuesday Blitz November 14 Early 2023"]
[White "Begunov, Konstantin"]
[Black "JuniorJumper"]
[WhiteFideId "4118510"]
[WhiteElo "2446"]
[BlackElo "2589"]
[Result "1/2-1/2"]
[Round "8"]
[TimeControl "180+1"]
[Date "2023.11.14"]
[WhiteClock "0:00:08"]
[BlackClock "0:00:03"]
[Board "93"]

1. d4 {[%clk 0:02:39]}  Nf6 {[%clk 0:02:59]} 2. c4 {[%clk 0:02:39]}  e6 {[%clk 0:02:58]} 3. Nf3 {[%clk 0:02:39]}  b6 {[%clk 0:02:59]} 4. g3 {[%clk 0:02:39]}  Bb7 {[%clk 0:02:59]} 5. Bg2 {[%clk 0:02:39]}  Bb4+ {[%clk 0:03:00]} 6. Nbd2 {[%clk 0:02:39]}  O-O {[%clk 0:03:00]} 7. O-O {[%clk 0:02:39]}  Bxd2 {[%clk 0:02:56]} 8. Bxd2 {[%clk 0:02:39]}  d6 {[%clk 0:02:56]} 9. b4 {[%clk 0:02:35]}  Nbd7 {[%clk 0:02:55]} 10. Rc1 {[%clk 0:02:30]}  a5 {[%clk 0:02:55]} 11. bxa5 {[%clk 0:02:29]}  bxa5 {[%clk 0:02:56]} 12. c5 {[%clk 0:02:26]}  Bd5 {[%clk 0:02:35]} 13. Qa4 {[%clk 0:02:21]}  Ne4 {[%clk 0:02:32]} 14. Be3 {[%clk 0:02:15]}  Ndf6 {[%clk 0:02:18]} 15. Rfd1 {[%clk 0:02:05]}  Qe7 {[%clk 0:02:14]} 16. Ne1 {[%clk 0:02:03]}  Ng4 {[%clk 0:02:06]} 17. Qa3 {[%clk 0:01:29]}  dxc5 {[%clk 0:01:41]} 18. dxc5 {[%clk 0:01:18]}  c6 {[%clk 0:01:39]} 19. f3 {[%clk 0:00:40]}  Nxe3 {[%clk 0:01:36]} 20. Qxe3 {[%clk 0:00:41]}  Nf6 {[%clk 0:01:32]} 21. Qe5 {[%clk 0:00:38]}  Nd7 {[%clk 0:01:12]} 22. Qd6 {[%clk 0:00:37]}  Qxd6 {[%clk 0:01:12]} 23. cxd6 {[%clk 0:00:38]}  c5 {[%clk 0:01:13]} 24. a3 {[%clk 0:00:33]}  Rfc8 {[%clk 0:01:05]} 25. e4 {[%clk 0:00:30]}  Bb3 {[%clk 0:01:05]} 26. Rd2 {[%clk 0:00:26]}  c4 {[%clk 0:01:05]} 27. Rc3 {[%clk 0:00:22]}  e5 {[%clk 0:01:01]} 28. Bh3 {[%clk 0:00:18]}  Rd8 {[%clk 0:00:57]} 29. Bxd7 {[%clk 0:00:18]}  Rxd7 {[%clk 0:00:57]} 30. Nc2 {[%clk 0:00:19]}  Rad8 {[%clk 0:00:55]} 31. Ne3 {[%clk 0:00:19]}  Rxd6 {[%clk 0:00:55]} 32. Rxd6 {[%clk 0:00:19]}  Rxd6 {[%clk 0:00:56]} 33. Nxc4 {[%clk 0:00:20]}  Bxc4 {[%clk 0:00:42]} 34. Rxc4 {[%clk 0:00:21]}  f6 {[%clk 0:00:43]} 35. Ra4 {[%clk 0:00:19]}  Ra6 {[%clk 0:00:35]} 36. Kf2 {[%clk 0:00:20]}  Kf7 {[%clk 0:00:36]} 37. Ke3 {[%clk 0:00:20]}  Ke6 {[%clk 0:00:37]} 38. Kd3 {[%clk 0:00:21]}  Kd6 {[%clk 0:00:37]} 39. Kc4 {[%clk 0:00:21]}  Kc6 {[%clk 0:00:38]} 40. h4 {[%clk 0:00:20]}  h5 {[%clk 0:00:36]} 41. Kc3 {[%clk 0:00:19]}  Kb5 {[%clk 0:00:24]} 42. Rc4 {[%clk 0:00:19]}  Rc6 {[%clk 0:00:22]} 43. a4+ {[%clk 0:00:18]}  Kb6 {[%clk 0:00:21]} 44. Rxc6+ {[%clk 0:00:18]}  Kxc6 {[%clk 0:00:22]} 45. Kc4 {[%clk 0:00:19]}  g5 {[%clk 0:00:19]} 46. Kb3 {[%clk 0:00:11]}  Kc5 {[%clk 0:00:19]} 47. Kc3 {[%clk 0:00:11]}  Kb6 {[%clk 0:00:18]} 48. Kc4 {[%clk 0:00:10]}  Kc6 {[%clk 0:00:19]} 49. Kb3 {[%clk 0:00:11]}  Kc5 {[%clk 0:00:06]} 50. Kc3 {[%clk 0:00:11]}  gxh4 {[%clk 0:00:04]} 51. gxh4 {[%clk 0:00:11]}  Kd6 {[%clk 0:00:04]} 52. Kc4 {[%clk 0:00:10]}  Kc6 {[%clk 0:00:04]} 53. Kb3 {[%clk 0:00:10]}  Kd7 {[%clk 0:00:05]} 54. Kc4 {[%clk 0:00:10]}  Kc6 {[%clk 0:00:05]} 55. Kb3 {[%clk 0:00:10]}  Kc5 {[%clk 0:00:06]} 56. Kc3 {[%clk 0:00:10]}  Kb6 {[%clk 0:00:05]} 57. Kd3 {[%clk 0:00:09]}  Kc7 {[%clk 0:00:03]} 58. Kc3 {[%clk 0:00:08]}  Kd6 {[%clk 0:00:04]} 59. Kd3 {[%clk 0:00:07]}  Kd7 {[%clk 0:00:03]} 60. Kc4 {[%clk 0:00:08]}  Kc6 {[%clk 0:00:03]} 1/2-1/2


[Site "https://www.chess.com"]

[Event "Titled Tuesday Blitz November 14 Early 2023"]
[White "Tasev, Dejan"]
[Black "ChessLebaneseSalah"]
[WhiteFideId "936618"]
[WhiteElo "2580"]
[BlackElo "2423"]
[Result "1-0"]
[Round "8"]
[TimeControl "180+1"]
[Date "2023.11.14"]
[WhiteClock "0:00:46"]
[BlackClock "0:00:06"]
[Board "94"]

1. e4 {[%clk 0:03:00]}  c5 {[%clk 0:02:59]} 2. Nf3 {[%clk 0:03:00]}  d6 {[%clk 0:02:58]} 3. Nc3 {[%clk 0:03:01]}  Nf6 {[%clk 0:02:58]} 4. d4 {[%clk 0:03:00]}  cxd4 {[%clk 0:02:58]} 5. Nxd4 {[%clk 0:03:01]}  Nc6 {[%clk 0:02:58]} 6. Bc4 {[%clk 0:03:00]}  Qb6 {[%clk 0:02:57]} 7. Nb3 {[%clk 0:02:59]}  e6 {[%clk 0:02:49]} 8. Be3 {[%clk 0:02:59]}  Qc7 {[%clk 0:02:47]} 9. Qe2 {[%clk 0:02:59]}  a6 {[%clk 0:02:47]} 10. a4 {[%clk 0:02:59]}  Be7 {[%clk 0:02:47]} 11. O-O {[%clk 0:02:54]}  O-O {[%clk 0:02:46]} 12. f4 {[%clk 0:02:51]}  Bd7 {[%clk 0:02:43]} 13. Rf3 {[%clk 0:02:42]}  Rfc8 {[%clk 0:02:18]} 14. Rh3 {[%clk 0:02:25]}  Nb4 {[%clk 0:01:41]} 15. Bd3 {[%clk 0:02:21]}  Nxd3 {[%clk 0:01:40]} 16. cxd3 {[%clk 0:02:19]}  Bf8 {[%clk 0:01:32]} 17. a5 {[%clk 0:02:13]}  g6 {[%clk 0:01:23]} 18. Rf1 {[%clk 0:02:07]}  Bg7 {[%clk 0:01:22]} 19. Bb6 {[%clk 0:01:52]}  Qb8 {[%clk 0:01:13]} 20. e5 {[%clk 0:01:44]}  Ne8 {[%clk 0:01:13]} 21. d4 {[%clk 0:01:38]}  Rxc3 {[%clk 0:01:07]} 22. bxc3 {[%clk 0:01:36]}  d5 {[%clk 0:00:55]} 23. Qb2 {[%clk 0:01:30]}  Bb5 {[%clk 0:00:53]} 24. Rf2 {[%clk 0:01:27]}  Qc8 {[%clk 0:00:53]} 25. Nc5 {[%clk 0:01:25]}  Qc6 {[%clk 0:00:53]} 26. g4 {[%clk 0:01:20]}  f6 {[%clk 0:00:42]} 27. Re3 {[%clk 0:01:14]}  fxe5 {[%clk 0:00:36]} 28. fxe5 {[%clk 0:01:13]}  Nc7 {[%clk 0:00:34]} 29. Ref3 {[%clk 0:01:00]}  Bh6 {[%clk 0:00:17]} 30. h4 {[%clk 0:00:53]}  Ne8 {[%clk 0:00:12]} 31. g5 {[%clk 0:00:53]}  Bg7 {[%clk 0:00:12]} 32. Qd2 {[%clk 0:00:52]}  Qc8 {[%clk 0:00:09]} 33. Qf4 {[%clk 0:00:51]}  Kh8 {[%clk 0:00:06]} 34. Qf8+ {[%clk 0:00:47]}  Bxf8 {[%clk 0:00:06]} 35. Rxf8+ {[%clk 0:00:46]}  Kg7 {[%clk 0:00:06]} 36. R2f7# {[%clk 0:00:46]} 1-0


[Site "https://www.chess.com"]